Cogmind - Beta 10.2 @@@ ROGUE MODE // 2020.12.27 @ 19:20:47 Player: Wakanaka Result: Destroyed by as-27235 with Assembled Heavy Rifle Performance ------------- Evolutions (1) 500 Regions Visited (3) 600 Robots Destroyed (40) 200 Value Destroyed (915) 915 Prototype IDs (2) 40 Alien Tech Used (0) 0 Bonus (52) 52 TOTAL SCORE: 2307 Bonus ------- High Alert Combat Kills 52 Cogmind --------- Core Integrity 0/400 Matter 169/300 Energy 100/100 System Corruption 22% Temperature Cool (0) Movement Core (400) Ox7 Location -9/Mines Parts ------- > --- POWER (1) -------- (None) > --- PROPULSION (2) --- (None) > --- UTILITY (4) ------ Medium Storage Unit Heavy Armor Plating > --- WEAPON (2) ------- (None) > --- INVENTORY (8) ---- Hacking Suite Peak State ------------ > --- POWER ------------ Light Nuclear Core > --- PROPULSION ------- Wheel Wheel > --- UTILITY ---------- Medium Storage Unit Particle Charger Heavy Armor Plating > --- WEAPON ----------- Improved Medium Laser Improved Grenade Launcher > --- INVENTORY -------- Light Nuclear Core Wheel Heavy Armor Plating Hacking Suite Improved EM Shotgun [Rating: 22] Favorites ----------- Power Ion Engine Engine Ion Engine Power Core Light Nuclear Core Propulsion Wheel Wheel Wheel Utility Medium Storage Unit Device Particle Charger Storage Medium Storage Unit Protection Core Shielding Weapon Assault Rifle Energy Gun EM Pulse Gun Ballistic Gun Assault Rifle Ballistic Cannon Light Cannon Launcher Improved Grenade Launcher Build | -11 -10 -9 -9 ------- Run | Scr Mat Mat Min Slots Evolved 2 | . . 2 . Power . | . . . . Propulsion . | . . . . Utility 2 | . . 2 . Weapon . | . . . . Parts Attached 29 | 7 4 14 4 Power 6 | 2 . 3 1 Engine 3 | 2 . 1 . Core 3 | . . 2 1 Reactor . | . . . . Propulsion 7 | 2 2 2 1 Treads . | . . . . Leg . | . . . . Wheel 7 | 2 2 2 1 Hover . | . . . . Flight . | . . . . Utility 8 | 1 2 4 1 Device 1 | . . 1 . Storage 2 | 1 1 . . Processor . | . . . . Hackware . | . . . . Protection 5 | . 1 3 1 Artifact . | . . . . Weapon 8 | 2 . 5 1 Energy Gun 3 | 1 . 1 1 Energy Cannon . | . . . . Ballistic Gun 2 | 1 . 1 . Ballistic Cannon 1 | . . 1 . Launcher 2 | . . 2 . Special Weapon . | . . . . Impact Weapon . | . . . . Slashing Weapon . | . . . . Piercing Weapon . | . . . . Special Melee Weapon . | . . . . Unidentified Prototypes 2 | . . 1 1 Parts Lost 21 | . 2 10 9 Power 4 | . . 2 2 Propulsion 6 | . 2 2 2 Utility 4 | . . 2 2 Weapon 7 | . . 4 3 Highest Loss Streak 9 | . 2 8 9 Average Slot Usage (%) 81 | . 92 71 80 Engine 7 | . 14 4 . Core 3 | . . 5 9 Wheel 18 | . 26 11 20 Device 3 | . . 5 8 Storage 12 | . 14 11 11 Protection 10 | . 8 12 11 Energy Gun 8 | . 14 4 9 Ballistic Gun 7 | . 14 3 . Ballistic Cannon 2 | . . 6 . Launcher 4 | . . 7 10 Naked Turns . | . . . . Heaviest Build 40 | 13 18 40 40 Greatest Support 32 | 32 32 20 20 Greatest Overweight (x) 13 | . . 13 9 Average Overweight (x) . | . . 2 1 Largest Inventory Capacity 8 | 6 8 8 8 Average Capacity 7 | 5 7 8 8 Most Carried 8 | 4 6 8 5 Average Carried 5 | 1 5 6 4 Final Capacity 8 | 6 8 8 8 Final Carried 6 | 4 6 6 1 Class Distribution -------------------- 100% | Mutant Dominant Class ---------------- Mutant | -10/Materials Mutant | -9/Materials Mutant | -9/Mines Resources | -11 -10 -9 -9 ----------- Run | Scr Mat Mat Min Matter Collected 752 | 150 146 456 . Remotely . | . . . . Salvage Created 1004 | . 196 798 10 Parts 66 | . 13 53 . Haulers Intercepted 1 | . . 1 . Recyclers Shooed . | . . . . Parts Field Recycled . | . . . . Retrieved Matter . | . . . . Parts Self-Destructed . | . . . . Prevented . | . . . . Kills | -11 -10 -9 -9 ------- Run | Scr Mat Mat Min Combat Hostiles Destroyed 30 | . 6 22 2 Guns 12 | . 6 6 . Cannons 1 | . . 1 . AOE 17 | . . 15 2 Classes Destroyed 10 | . 3 6 1 Worker 1 | . . 1 . Builder 5 | . . 5 . Hauler 1 | . . 1 . Recycler 3 | . . 3 . Operator 1 | . 1 . . Watcher 1 | . . 1 . Swarmer 9 | . 3 6 . Grunt 17 | . 3 14 . Sentry 2 | . . 2 . Assembled 2 | . . . 2 Best Kill Streak 6 | . 4 6 2 Combat Bots Only 6 | . 3 6 2 Max Kills in Single Turn 4 | . 1 4 2 Gunslinging . | . . . . Exploded 2 | . . 2 2 Melee . | . . . . Uniques/NPCs Destroyed . | . . . . Combat | -11 -10 -9 -9 -------- Run | Scr Mat Mat Min Damage Taken 2441 | . 207 1256 978 Core 449 | . 36 287 126 Absorbed by Shields . | . . . . Core Remaining (%) 92 | 100 85 . . Volleys Fired 68 | . 20 46 2 Largest 2 | . 2 2 2 Hottest 92 | . 60 92 81 Shots Fired 128 | . 40 85 3 Gun 87 | . 40 46 1 Cannon 22 | . . 22 . Launcher 19 | . . 17 2 Special . | . . . . Kinetic 69 | . 20 49 . Thermal 7 | . . 7 . Explosive 19 | . . 17 2 Electromagnetic 33 | . 20 12 1 Robot Hit Streak 13 | . 13 12 3 Robot Miss Streak 7 | . 7 4 1 Penetration Max . | . . . . Secondary Targets . | . . . . Shots Hit Robots 83 | . 24 56 3 Core Hits 60 | . 9 44 7 Critical Hits 1 | . . 1 . Critical Kills 1 | . . 1 . Critical Parts Destroyed . | . . . . Melee Attacks . | . . . . Impact . | . . . . Slashing . | . . . . Piercing . | . . . . Sneak Attacks . | . . . . Combat Hostiles . | . . . . Follow-up Attacks . | . . . . Damage Inflicted 3045 | . 313 2342 390 Guns 752 | . 313 430 9 Cannons 287 | . . 287 . Explosions 2006 | . . 1625 381 Melee . | . . . . Ramming . | . . . . Kinetic 638 | . 136 502 . Thermal 147 | . . 147 . Explosive 1974 | . . 1593 381 Electromagnetic 286 | . 177 100 9 Impact . | . . . . Slashing . | . . . . Piercing . | . . . . Highest Corruption 22 | . . 7 22 Average Corruption 8 | . . 7 9 Corruption Purged . | . . . . Effects 17 | . . 10 7 Message Errors 3 | . . . 3 Matter Fused 5 | . . 3 2 Heat Flow Errors 1 | . . . 1 Energy Discharges 1 | . . 1 . Parts Rejected 2 | . . 2 . Data Loss (minor) 1 | . . 1 . Misfires 1 | . . 1 . Targeting Errors 3 | . . 2 1 Overload Shots . | . . . . Overflow Damage 48 | . . 48 . Projectiles . | . . . . Explosions 48 | . . 48 . Melee . | . . . . Knockbacks 1 | . . 1 . Impact . | . . . . Kinetic 1 | . . 1 . Secondary . | . . . . Self-Inflicted Damage 117 | . . 51 66 Shots 4 | . . 2 2 Rammed . | . . . . Targets Rammed . | . . . . Kicked . | . . . . Crushed . | . . . . Highest Temperature 138 | . 78 138 105 Average Temperature 37 | . 43 35 35 Received Heat Transfer 435 | . 78 297 60 Siege Activations . | . . . . Robots Corrupted . | . . . . Combat Hostiles . | . . . . Parts Fried . | . . . . Impact Corruptions . | . . . . Robots Melted . | . . . . Combat Hostiles . | . . . . Parts Melted 2 | . . 2 . Heat Transferred 272 | . . 272 . Parts Sabotaged . | . . . . Parts Stolen . | . . . . Parts Stripped . | . . . . Power Chain Reactions 1 | . . 1 . Missiles Intercepted . | . . . . Alert | -11 -10 -9 -9 ------- Run | Scr Mat Mat Min Peak Influence 544 | . 203 544 194 Initial 194 | . . 85 194 Average 187 | . 55 322 179 Maximum Alert Level 2 | . 1 2 . Low Security (%) 65 | 100 93 25 100 Level 1 17 | . 6 33 . Level 2 17 | . . 40 . Level 3 . | . . . . Level 4 . | . . . . Level 5 . | . . . . High Security . | . . . . Max Security . | . . . . Squads Dispatched 4 | . 2 2 . Investigation 1 | . 1 . . Extermination . | . . . . Reinforcement 3 | . 1 2 . Assault . | . . . . Garrison . | . . . . Intercept . | . . . . Construction Impeded . | . . . . Haulers Reinforced . | . . . . Stealth | -11 -10 -9 -9 --------- Run | Scr Mat Mat Min Distress Signals 5 | . 3 2 . Communications Jammed . | . . . . Distress Signals . | . . . . Times Spotted 65 | . 12 31 22 Peak Tracking Total 14 | . 5 7 14 Tactical Retreats 4 | . 1 2 1 Traps | -11 -10 -9 -9 ------- Run | Scr Mat Mat Min Traps Triggered 1 | . 1 . . Indirectly . | . . . . Trap Hack Attempts . | . . . . Triggered . | . . . . Disarmed . | . . . . Reprogrammed . | . . . . Reused . | . . . . Traps Extracted . | . . . . Installed . | . . . . Triggered . | . . . . Machines | -11 -10 -9 -9 ---------- Run | Scr Mat Mat Min Machines Disabled 6 | . . 6 . Max in Single Turn 2 | . . 2 . Machines Sabotaged . | . . . . Garrisons Compromised . | . . . . Overloaded Fab Kills . | . . . . Fab Network Shutdowns . | . . . . Hacking | -11 -10 -9 -9 --------- Run | Scr Mat Mat Min Machines Accessed 4 | . 4 . . Terminals 4 | . 4 . . Fabricators . | . . . . Repair Stations . | . . . . Recycling Units . | . . . . Scanalyzers . | . . . . Garrison Access . | . . . . Total Hacks 10 | . 10 . . Successful 6 | . 6 . . Failed 4 | . 4 . . Catastrophic . | . . . . Database Lockouts . | . . . . Manual . | . . . . Terminals 10 | . 10 . . Fabricators . | . . . . Repair Stations . | . . . . Recycling Units . | . . . . Scanalyzers . | . . . . Garrison Access . | . . . . Terminal Hacks 6 | . 6 . . Record 3 | . 3 . . Locate Traps 1 | . 1 . . Hauler Manifests 1 | . 1 . . Zone Layout 1 | . 1 . . Fabricator Hacks . | . . . . Repair Station Hacks . | . . . . Recycling Unit Hacks . | . . . . Scanalyzer . | . . . . Garrison Access Hacks . | . . . . Unauthorized Hacks . | . . . . Terminals . | . . . . Fabricators . | . . . . Repair Stations . | . . . . Recycling Units . | . . . . Scanalyzers . | . . . . Garrison Access . | . . . . Data Cores Recovered . | . . . . Used . | . . . . Hacking Detections 4 | . 4 . . Full Trace Events . | . . . . Feedback Events . | . . . . Feedback Blocked . | . . . . Robot Schematics Acquired . | . . . . Robots Built . | . . . . Matter . | . . . . Time . | . . . . Total Robot Build Rating . | . . . . Part Schematics Acquired . | . . . . Parts Built . | . . . . Matter . | . . . . Time . | . . . . Total Part Build Rating . | . . . . Parts Repaired . | . . . . Time . | . . . . Parts Recycled . | . . . . Recycled Matter . | . . . . Retrieved Matter . | . . . . Retrieved Components . | . . . . Parts Scanalyzed . | . . . . Part Schematics Acquired . | . . . . Parts Damaged . | . . . . Bothacking | -11 -10 -9 -9 ------------ Run | Scr Mat Mat Min Used RIF Installer . | . . . . Robots Hacked . | . . . . Non-combat . | . . . . Combat . | . . . . Robot Hacks Applied . | . . . . Relay Couplers Released . | . . . . Robots Rewired . | . . . . Allies Hacked . | . . . . Hacks Repelled . | . . . . Allies | -11 -10 -9 -9 -------- Run | Scr Mat Mat Min Total Allies . | . . . . Largest Group . | . . . . Highest-Rated Group . | . . . . Highest-Rated Ally . | . . . . Total Orders . | . . . . Ally Attacks . | . . . . Total Damage . | . . . . Kills . | . . . . Allies Corrupted . | . . . . Allies Melted . | . . . . Intel | -11 -10 -9 -9 ------- Run | Scr Mat Mat Min Robot Analysis Total . | . . . . Derelict Logs Recovered . | . . . . Drone Launches . | . . . . Drone Recoveries . | . . . . Exploration | -11 -10 -9 -9 ------------- Run | Scr Mat Mat Min Turns Passed 1028 | 54 378 452 144 Spaces Moved 627 | 41 292 158 136 Core 33 | 1 . 28 4 Treads . | . . . . Legs . | . . . . Wheels 594 | 40 292 130 132 Hover . | . . . . Flight . | . . . . Fastest Speed 50 | 50 80 80 90 Average Speed 118 | 98 97 179 99 Slowest Speed 700 | 100 100 700 500 Overloaded Moves . | . . . . Propulsion Burnouts . | . . . . Robots Hopped . | . . . . Cave-ins Triggered 1 | . . 1 . Exploration Rate (%) 30 | 3 48 25 44 Regions Visited 3 Branch Regions 1 Pre-discovered Areas . | . . . . Known Exits Taken . | . . . . Unknown Exits Taken 3 | 1 1 1 . Scrap Searched . | . . . . Spaces Dug . | . . . . Terrain Destroyed 122 | . . 100 22 Melee . | . . . . Projectile . | . . . . AOE 122 | . . 100 22 Terrain Rammed . | . . . . Walls Destroyed . | . . . . Machines Disabled . | . . . . Actions | -11 -10 -9 -9 --------- Run | Scr Mat Mat Min Total 783 | 51 345 243 144 Wait 33 | . 17 14 2 Move 624 | 40 291 157 136 Hop . | . . . . Pick Up 22 | 4 9 9 . Fast Attach 9 | 5 . 4 . Attach 17 | 1 3 9 4 Detach 1 | . . 1 . Swap 3 | 1 1 1 . Drop 6 | . 4 2 . Fire 68 | . 20 46 2 Melee . | . . . . Ram . | . . . . Kick . | . . . . Crush . | . . . . Escape Stasis . | . . . . Rewire . | . . . . Trap . | . . . . Miscellaneous . | . . . . Route ------- -11/Scrapyard -10/Materials -9/Materials -9/Mines History --------- Turn | Location | Event 19 | -11/Scrapyard | Discovered new exit (range 16) 55 | -11/Scrapyard | Entered Materials 308 | -10/Materials | Build established: Mutant 408 | -10/Materials | Discovered new exit (range 16) 433 | -10/Materials | Entered another Materials area 433 | -9/Materials | Evolved 2 slots: Utility x2 618 | -9/Materials | Crushed by falling debris 649 | -9/Materials | Lost 8 parts (1p2n2u3w) 672 | -9/Materials | Discovered new exit (range 14) 781 | -9/Materials | Core integrity fell below 50% 885 | -9/Materials | Entered Mines 924 | -9/Mines | Met a Derelict bent on vengeance 949 | -9/Mines | Assembled infested the area 954 | -9/Mines | Assisted by a Guerilla fighting off Assembled 991 | -9/Mines | System corruption reached 10% 1015 | -9/Mines | Core integrity fell below 20% 1029 | -9/Mines | Destroyed by as-27235 with Assembled Heavy Rifle Last Messages --------------- 01011_ Wheel destroyed. 01011_ System corrupted: Imp. Grenade Launcher targeting data glitched. 01011_ as-66463 destroyed. 01011_ as-05644 destroyed. 01012_ Wheel destroyed. 01012_ System corrupted by crushing effect (+3). 01012_ Hvy. Armor Plating destroyed. 01012_ System corrupted by crushing effect (+4). 01013_ Imp. Grenade Launcher destroyed. 01014_ as-98640 destroyed. 01014_ as-70593 destroyed. 01014_ Knocked back. 01017_ as-14210 destroyed. 01017_ as-28304 destroyed. 01018_ System corrupted: Heat flow error (+120). 01019_ Lgt. Nuclear Core destroyed. 01020_ The unstable cave ceiling collapses. 01021_ as-79390 destroyed. 01021_ D-53 Grenadier destroyed. 01023_ The unstable cave ceiling collapses. Map ----- +----------------------------------------------------+ | | | | | | | | | | | | | | | ????????????????????????????????????? | | ????????????????????????????????????? | | ????????????????????????????????????? | | ?????????? ##???????????????????????? | | ???????? #??????????????????????? | | ??????## ??????????????????????? | | ??????# #?????????????????????? | | ??????# ##????????????????????? | | ??????# #????????????????????? | | ?????## ????????????????????? | | ???### ????????????????????? | | ???? #????????????????????? | | ????? ##???????????????????? | | ?????? #####???????????????? | | ??????? ##??????????????? | | ????????# < ##?????????????? | | ?????????# ####??????????? | | ?????????# #??????????? | | ????????## @ #??????????????? | | ????????# ##?????????????? | | ????????# ##????????????? | | ????????# ##???????????? | | ????????## ### #???????? | | ?????????### #???????? | | ?????# ?## # a% a #???????? | | ?????# # ######???????? | | ????# d #????????????? | | ???# #????????????? | | ???# % #??????????? | | ???# ## % #?????????? | | ???## ##??# #?????????? | | ????## #????? # # ####????? | | ?????## #??????###### ##???? | | ??????## ?????????????# # #???? | | ???????# ########?????? ##???? | | ???????# #??????# #???? | | ???????######## #?????# #???? | | ????????????### ######## #???? | | ????????????# ### #???? | | ????????????# ## ##???? | | ????????????# ###### ##### ##??? | | ?????????#### #????# ##### ##?? | | ????????## #????# ##? | +----------------------------------------------------+ Best States ------------- Heat Dissipation 28 Energy Generation 14 Energy Capacity 250 Matter Stores 264 Matter Capacity 300 Sight Range 16 Terrain Scan Density 10 Armor Coverage 600 Core Shielding 20 Propulsion Shielding 33 Evasion (%) 44 Particle Charging 15 Item Schematics ----------------- None Robot Schematics ------------------ None Fabricated ------------ Nothing Alien Tech Used ----------------- None Achievements -------------- Maybe Next Time I'll Detach My Launcher Oops Challenges ------------ None Game ------ Seed IonicMachineClaw Manual? 0 Play Time 00:20:33 Cumulative 13.3 hours Start 2020.12.27 @ 18:03:45 End 2020.12.27 @ 19:20:47 Sessions 1 Manual Loads 0 Difficulty Rogue Special Mode None Game No. 17 Rogue 17 Adventurer 0 Explorer 0 Win Type - Total 0 Types 0/0/0/0/0/0/0/0/0 Lore% 16 Gallery% 18 Achievement% 14 Wizard Run 0 Options --------- ASCII 0 Keyboard 0 Movement Numpad Keybinds 0 Fullscreen 1 Font 18/Terminus Map View 76x50 Tactical HUD 1 Map Filters NONE Filters NONE Steam 1 RUN: 6e9e165c-e87f-4157-b793-8db28fc0f421